bitfinex/quotes_ETHUSD_20250430
["timestamp","ask_amount","ask_price","bid_price","bid_amount"]
[1746006984973,3.85965252,1807.9,1807.8,10.13590677]
[1746006985172,3.85965252,1807.9,1807.8,11.78769612]
[1746006986582,3.85965252,1807.9,1807.8,6.25611077]
[1746006986782,3.85965252,1807.9,1807.8,10.13590677]
[1746006987609,3.85965252,1807.9,1807.8,4.60432142]
[1746006987787,0.8286324,1807.9,1807.8,4.60432142]
[1746006987971,1.6211324,1807.9,1807.8,4.60432142]
[1746006988359,0.8286324,1807.9,1807.8,4.60432142]
[1746006991585,0.8286324,1807.9,1807.8,4.60532142]
[1746006991586,8.3270047,1807.9,1807.8,4.60532142]
[1746006992486,2.79572532,1807.9,1807.8,4.60532142]
[1746006993680,5.82674544,1807.9,1807.8,4.60532142]
[1746006994067,11.35802482,1807.9,1807.8,4.60532142]
[1746006995251,4.63765252,1807.9,1807.8,4.60532142]
[1746006997380,10.1689319,1807.9,1807.8,4.60532142]
[1746007000110,9.3909319,1807.9,1807.8,4.60532142]
[1746007000271,3.85965252,1807.9,1807.8,4.60532142]
[1746007001100,9.3909319,1807.9,1807.8,4.60532142]
[1746007001402,3.85965252,1807.9,1807.8,4.60532142]
[1746007001560,10.95892278,1807.9,1807.8,4.60532142]
[1746007009887,3.85965252,1807.9,1807.8,4.60532142]
[1746007011417,9.3909319,1807.9,1807.8,4.60532142]
[1746007013122,9.3909319,1807.9,1807.8,0.00232142]
[1746007021124,3.85965252,1807.9,1807.8,0.00232142]
[1746007021422,9.3909319,1807.9,1807.8,0.00232142]
[1746007022382,3.85965252,1807.9,1807.8,0.00232142]
[1746007023599,9.3909319,1807.9,1807.8,0.00232142]
[1746007023802,16.41467727,1807.9,1807.7,4.601]
[1746007023992,0.51789801,1807.8,1807.7,4.601]
[1746007024390,0.8286324,1807.8,1807.7,4.601]
[1746007032436,0.8286324,1807.8,1807.7,4.601]
[1746007032806,6.36021775,1807.8,1807.7,4.601]
[1746007046938,5.53250345,1807.5,1807.4,4.599]
[1746007047137,6.94972171,1807.5,1807.4,4.599]
[1746007047668,7.46761972,1807.5,1807.4,4.599]
[1746007047885,5.532995,1807.4,1807.1,19.0966]
[1746007048064,5.532995,1807.4,1807.3,4.599]
[1746007048373,6.3616274,1807.4,1807.3,4.599]
[1746007049738,6.36144196,1807.4,1807.3,4.599]
[1746007050868,0.8286324,1807.4,1807.3,10.92871569]
[1746007051068,0.8286324,1807.4,1807.3,12.02158726]
[1746007053276,0.8286324,1807.4,1807.3,12.57158726]
[1746007058154,0.8286324,1807.4,1807.3,14.27025395]
[1746007058994,0.8286324,1807.4,1807.3,1.88947157]
[1746007059286,0.8286324,1807.4,1807.3,10.92871569]
[1746007060799,0.8286324,1807.4,1807.3,13.17738238]
[1746007074399,0.51789801,1807.4,1807.3,13.17738238]
[1746007076402,0.8286553,1807.4,1807.3,13.17738238]
[1746007076978,0.51789801,1807.4,1807.3,13.17738238]
[1746007077179,0.51789801,1807.4,1807.3,15.04844914]
[1746007079212,0.82869662,1807.4,1807.3,15.04844914]
[1746007081014,0.82869662,1807.4,1807.3,13.34978245]
[1746007085586,0.82869662,1807.4,1807.3,14.56252353]
[1746007086025,0.82869662,1807.4,1807.3,13.34978245]
[1746007086319,0.82869662,1807.4,1807.3,10.13211569]
[1746007086483,0.82869662,1807.4,1807.3,12.66345677]
[1746007093542,0.82869662,1807.4,1807.3,13.14825689]
[1746007094345,3.03102012,1808.0,1807.9,6.08127938]
[1746007094634,0.7983,1808.2,1808.0,11.06156929]
[1746007094828,0.7983,1808.2,1808.0,5.53076451]
[1746007095243,0.7983,1808.2,1808.0,11.06153233]
[1746007095701,0.7983,1808.2,1808.0,5.53076451]
[1746007095901,0.7983,1808.2,1807.9,12.37463368]
[1746007095902,0.7983,1808.2,1807.9,10.67709248]
[1746007096101,0.7983,1808.2,1808.0,5.53091117]
[1746007096538,0.7983,1808.2,1808.0,5.53080734]
[1746007097242,3.82762012,1808.4,1808.2,5.5302244]
[1746007097407,3.82762012,1808.4,1808.3,4.596]
[1746007102556,8.56077017,1808.4,1808.3,4.596]
[1746007102729,9.31697017,1808.4,1808.3,4.596]
[1746007103055,3.78722012,1808.4,1808.3,4.596]
[1746007107620,4.09729989,1808.4,1808.3,4.596]
[1746007112962,9.62704994,1808.4,1808.3,4.596]
[1746007113260,11.14270095,1808.4,1808.3,4.596]
[1746007114065,5.6129509,1808.4,1808.3,4.596]
[1746007114431,4.09729989,1808.4,1808.3,4.596]
[1746007114865,9.62704994,1808.4,1808.3,4.596]
[1746007115429,4.09729989,1808.4,1808.3,4.596]
[1746007124443,3.34109989,1808.4,1808.3,4.596]
[1746007129348,8.87084994,1808.4,1808.3,4.596]
[1746007130151,11.17566264,1808.4,1808.3,4.596]
[1746007132176,15.87320384,1808.4,1808.3,4.596]
[1746007132679,5.53091725,1808.1,1808.0,4.589]
[1746007132849,6.34271725,1808.1,1808.0,4.589]
[1746007133569,6.65279702,1808.1,1808.0,4.589]
[1746007135381,7.17093954,1808.1,1808.0,4.589]
[1746007139881,1.64002229,1808.1,1808.0,4.589]
[1746007140182,0.82822229,1808.1,1808.0,4.589]
[1746007140491,0.82822229,1808.1,1808.0,5.0479]
[1746007141281,6.35888984,1808.1,1808.0,4.589]
[1746007141681,0.82822229,1808.1,1808.0,4.589]
[1746007148295,6.35888984,1808.1,1808.0,4.589]
[1746007150323,0.82822229,1808.1,1808.0,4.589]
[1746007150497,5.53038663,1808.2,1808.0,4.589]
[1746007150700,0.31080271,1808.1,1808.0,4.589]
[1746007150866,0.82880723,1808.1,1808.0,4.589]
[1746007151197,6.35947478,1808.1,1808.0,4.589]
[1746007151697,5.84147026,1808.1,1808.0,4.589]
[1746007152077,5.53066755,1808.1,1808.0,4.589]
[1746007153394,6.35954667,1808.1,1808.0,4.589]
[1746007155392,0.82887912,1808.1,1808.0,4.589]
[1746007155597,0.82887912,1808.1,1808.0,6.36931567]
[1746007155813,0.82887912,1808.1,1808.0,11.90028912]
[1746007156300,0.51804506,1808.1,1808.0,11.90028912]
[1746007159112,0.82868752,1808.1,1808.0,11.90028912]
[1746007161308,0.51804506,1808.1,1808.0,11.90028912]
[1746007161531,0.51804506,1808.1,1808.0,12.45028912]
[1746007179319,0.51804506,1808.1,1808.0,11.90028912]
[1746007179528,0.51804506,1808.1,1808.0,11.13198912]
[1746007179831,1.30214506,1808.1,1807.8,5.53130301]
[1746007180014,1.61281083,1808.1,1808.0,4.587]
[1746007182430,0.7841,1808.1,1808.0,4.587]
[1746007185528,6.3008766,1808.3,1808.0,10.11797345]
[1746007185700,0.7707,1808.3,1808.0,10.11797345]
[1746007187912,6.30075775,1808.3,1808.0,10.11777007]
[1746007189237,6.30075775,1808.3,1808.0,4.587]
[1746007189403,6.93083353,1808.3,1808.0,4.587]
[1746007189703,5.53040156,1808.2,1808.0,4.587]
[1746007190033,1.59959878,1808.1,1808.0,4.587]
[1746007197349,0.8253,1807.9,1807.7,18.263]
[1746007197512,0.8253,1807.9,1807.8,4.584]
[1746007197707,1.34314698,1807.9,1807.8,4.584]
[1746007198043,1.65398402,1807.9,1807.8,4.584]
[1746007199042,0.82868402,1807.9,1807.8,10.11558535]
[1746007199206,0.82868402,1807.9,1807.8,13.58834928]
[1746007200416,0.82868402,1807.9,1807.8,14.92134928]
[1746007201139,0.51784698,1807.9,1807.8,14.92134928]
[1746007201755,6.34985444,1808.6,1807.8,14.92134928]
[1746007201756,6.34985444,1808.6,1808.2,5.53009451]
[1746007201954,6.34985444,1808.6,1808.3,4.585]
[1746007202254,0.51743591,1808.5,1808.3,4.585]
[1746007202616,0.31046138,1808.4,1808.3,4.585]
[1746007202815,0.82789729,1808.4,1808.3,4.585]
[1746007214658,0.82789729,1808.4,1808.3,11.88937002]
[1746007217666,0.82789729,1808.4,1808.3,5.59651417]
[1746007217870,0.82789729,1808.4,1808.3,4.585]
[1746007218197,0.82789729,1808.4,1808.0,0.829]
[1746007218339,6.34717345,1808.0,1807.9,4.584]
[1746007218532,8.11385848,1808.0,1807.9,4.584]
[1746007218772,6.34819245,1807.7,1807.6,4.584]
[1746007219071,6.34819245,1807.7,1807.5,4.584]
[1746007219485,0.51743591,1807.6,1807.5,4.584]
[1746007220041,6.04963329,1807.6,1807.5,4.584]
[1746007220441,0.51743591,1807.6,1807.5,4.584]
[1746007220647,0.51743591,1807.6,1807.5,10.57490345]
[1746007220888,6.34824158,1807.7,1807.5,4.584]
[1746007221051,5.53219738,1807.6,1807.5,4.584]
[1746007221576,6.04940013,1807.6,1807.5,4.584]
[1746007223088,0.51720275,1807.6,1807.5,4.584]
[1746007223268,6.04940013,1807.6,1807.5,4.584]
[1746007223882,0.51720275,1807.6,1807.5,4.584]
[1746007224050,6.04940013,1807.6,1807.5,4.584]
[1746007224967,6.35936546,1807.6,1807.5,4.584]
[1746007225285,14.60482616,1807.6,1807.5,4.584]
[1746007229649,17.60482616,1807.6,1807.5,4.584]
[1746007229986,6.33511569,1807.3,1807.2,22.843]
[1746007230481,0.802,1807.3,1807.2,22.843]
[1746007230674,6.29411295,1807.4,1807.2,22.843]
[1746007230985,0.51720275,1807.3,1807.2,22.843]
[1746007231187,0.51720275,1807.3,1807.2,28.37642186]
[1746007231490,5.53251289,1807.5,1807.2,28.37642186]
[1746007231805,0.5152256,1807.4,1807.2,28.37642186]
[1746007232303,0.5152256,1807.4,1807.2,22.843]
[1746007232669,0.5152256,1807.3,1807.2,22.843]
[1746007233596,6.04834129,1807.3,1807.2,22.843]
[1746007234009,6.84604129,1807.3,1807.2,22.843]
[1746007234576,8.08393945,1807.3,1807.2,4.583]
[1746007237010,14.6401114,1807.3,1807.2,4.583]
[1746007237700,5.53383352,1807.1,1807.0,4.584]
[1746007238203,6.04905912,1807.1,1807.0,4.584]
[1746007238574,5.53383352,1807.1,1807.0,4.584]
[1746007239593,7.98402136,1807.1,1807.0,4.584]
[1746007242957,5.53434058,1806.9,1806.8,4.584]
[1746007243722,6.04908906,1806.9,1806.8,4.584]
[1746007244606,6.87418906,1806.9,1806.8,4.68778899]
[1746007244807,8.1150252,1806.9,1806.8,4.68778899]
[1746007246338,14.2650252,1806.9,1806.8,4.68778899]
[1746007246922,6.66474848,1806.9,1806.8,4.68778899]
[1746007247103,6.66474848,1806.9,1806.8,11.03963587]
[1746007247299,6.15,1806.9,1806.8,5.50498899]
[1746007248646,6.66657729,1806.9,1806.8,5.50498899]
[1746007251824,0.82674753,1806.9,1806.8,4.68778899]
[1746007252845,6.36108811,1806.9,1806.8,4.68778899]
[1746007253354,6.36108811,1806.9,1806.8,11.49811477]
[1746007253355,0.82674753,1806.9,1806.8,11.49811477]
[1746007255018,0.82674753,1806.9,1806.8,0.10378899]
[1746007255223,0.82674753,1806.9,1806.8,6.43173587]
[1746007255570,0.82674753,1806.9,1806.8,6.32794688]
[1746007259864,0.82736833,1806.9,1806.8,6.32794688]
[1746007262431,6.15,1807.1,1806.9,5.53427505]
[1746007263682,0.82927446,1807.0,1806.9,5.53427505]
[1746007265061,6.36344861,1807.0,1806.8,0.7933]
[1746007265267,0.82927446,1807.0,1806.8,0.7933]
[1746007265467,0.51829654,1806.9,1806.8,0.7933]
[1746007265662,0.51829654,1806.9,1806.8,1.88460166]
[1746007265841,0.82927446,1806.9,1806.8,7.41924854]
[1746007266248,0.82927446,1806.9,1806.8,1.88460166]
[1746007266969,0.82927446,1806.9,1806.8,7.41924854]
[1746007268471,0.82927446,1806.9,1806.7,10.9145166]
[1746007269166,0.31097792,1806.8,1806.7,10.9145166]
[1746007269371,0.82927446,1806.8,1806.7,10.9145166]
[1746007269868,0.82927446,1806.8,1806.7,4.583]
[1746007270962,0.82946501,1806.8,1806.7,4.583]
[1746007272053,6.36411189,1806.8,1806.7,4.583]
[1746007272278,6.36411189,1806.8,1806.5,18.269]
[1746007272279,5.53516161,1806.7,1806.5,18.269]
[1746007272474,5.53516161,1806.7,1806.6,4.583]
[1746007272950,6.05375146,1806.7,1806.6,4.583]
[1746007273496,5.53516161,1806.7,1806.6,4.583]
[1746007273843,13.06735647,1806.8,1806.6,4.583]
[1746007274188,6.84168887,1806.7,1806.6,4.583]
[1746007275173,7.67140184,1806.7,1806.6,4.583]
[1746007276756,7.67125292,1806.7,1806.6,4.583]
[1746007278275,13.82125292,1806.7,1806.6,4.583]
[1746007279774,14.62835292,1806.7,1806.6,4.583]
[1746007284595,14.62752893,1806.7,1806.6,4.583]
[1746007285497,14.62752893,1806.7,1806.6,4.68944314]
[1746007286504,8.28547571,1806.7,1806.6,4.68944314]
[1746007286706,6.97874006,1806.7,1806.6,4.68944314]
[1746007289703,0.82874006,1806.7,1806.6,10.22470274]
[1746007289905,0.82874006,1806.7,1806.6,4.68944314]
[1746007290798,0.82874006,1806.7,1806.6,10.22470274]
[1746007290998,0.82874006,1806.7,1806.6,11.87836797]
[1746007291936,0.31114236,1806.7,1806.6,11.87836797]
[1746007292308,11.68421877,1807.0,1806.7,5.53494014]
[1746007292725,0.82825403,1806.9,1806.8,0.10907572]
[1746007293323,0.3105953,1806.9,1806.8,0.10907572]
[1746007293635,0.82825632,1806.9,1806.8,0.10907572]
[1746007293830,0.51766024,1806.9,1806.8,0.10907572]
[1746007294033,11.68421877,1807.0,1806.8,0.10907572]
[1746007294240,5.53434058,1806.9,1806.6,4.583]
[1746007294730,0.82855554,1806.8,1806.7,0.10901445]
[1746007294935,1.464845,1806.8,1806.7,0.10901445]
[1746007295247,5.53495322,1806.7,1806.6,4.583]
[1746007295752,6.36368472,1806.7,1806.6,4.583]
[1746007296042,6.36368405,1806.7,1806.6,4.583]
[1746007296453,6.36373712,1806.7,1806.6,4.583]
[1746007296953,6.36377293,1806.7,1806.6,4.583]
[1746007297113,5.84576309,1806.7,1806.6,4.583]
[1746007297313,5.53495322,1806.7,1806.6,4.583]
[1746007297531,6.36385855,1806.7,1806.6,4.583]
[1746007298047,7.69372788,1806.7,1806.6,4.583]
[1746007298252,7.38291546,1806.7,1806.6,4.583]
[1746007298448,8.02582237,1806.7,1806.6,4.583]
[1746007298654,14.69402406,1806.7,1806.6,4.583]
[1746007298817,14.62481496,1806.7,1806.6,4.583]
[1746007299150,16.32236227,1806.7,1806.6,4.583]
[1746007299329,16.01144893,1806.7,1806.6,4.583]
[1746007299519,16.32236774,1806.7,1806.6,4.583]
[1746007301145,5.53588383,1806.4,1806.3,4.583]
[1746007301741,7.11559765,1806.4,1806.3,4.583]
[1746007303457,6.36499765,1806.4,1806.3,4.583]
[1746007305534,6.36499765,1806.4,1806.3,4.69068326]
[1746007307152,0.82911382,1806.4,1806.3,11.05086218]
[1746007307852,0.82911382,1806.4,1806.3,6.61976948]
[1746007308052,0.82911382,1806.4,1806.3,5.51468326]
[1746007308223,0.82911382,1806.4,1806.3,4.69068326]
[1746007311452,6.36498627,1806.4,1806.3,4.69068326]
[1746007312756,0.82911382,1806.4,1806.3,4.69068326]
[1746007314385,6.36498627,1806.4,1806.3,4.69068326]
[1746007315162,5.53648543,1806.2,1806.1,0.05]
[1746007315334,10.82143403,1806.2,1806.1,0.05]
[1746007315534,7.24281164,1806.2,1806.1,0.05]
[1746007315743,0.82911382,1806.2,1806.1,0.05]
[1746007319871,6.36559925,1806.2,1806.1,0.05]
[1746007321494,7.55578195,1806.2,1806.1,0.05]
[1746007322568,7.62499501,1806.2,1806.1,0.05]
[1746007323295,8.39569501,1806.2,1806.1,0.05]
[1746007323795,8.32648195,1806.2,1806.1,0.05]
[1746007324098,8.39569779,1806.2,1806.1,0.05]
[1746007324394,8.32648195,1806.2,1806.1,0.05]
[1746007324764,8.74727224,1806.2,1806.1,0.05]
[1746007324982,14.12657224,1806.2,1806.1,0.05]
[1746007326100,14.88187224,1806.2,1806.1,0.05]
[1746007328451,8.16929652,1806.2,1806.1,0.05]
[1746007328613,6.97911382,1806.2,1806.1,0.05]
[1746007329962,6.97911382,1806.2,1806.1,5.58679198]
[1746007330756,6.66819501,1806.2,1806.1,5.58679198]
[1746007330920,0.51819501,1806.2,1806.1,5.58679198]
[1746007331758,0.51819501,1806.2,1806.1,7.23494917]
[1746007334823,0.51819501,1806.2,1806.1,5.58679198]
[1746007336724,0.51819501,1806.2,1806.1,0.05]
[1746007338167,0.51819501,1806.2,1806.1,4.633]
[1746007340559,6.05468044,1806.2,1806.1,4.633]
[1746007340762,0.51819501,1806.2,1806.1,4.633]
[1746007340931,1.20579091,1806.2,1806.1,4.633]
[1746007341260,1.51675202,1806.2,1806.1,4.633]
[1746007341959,0.6875959,1806.2,1806.1,4.633]
[1746007343067,0.6875959,1806.2,1806.1,10.99269198]
[1746007343247,11.88579467,1806.4,1806.1,5.4559]
[1746007343451,6.34969198,1806.4,1806.1,5.4559]
[1746007344165,6.34969198,1806.4,1806.1,10.99260236]
[1746007344474,11.88579248,1806.4,1806.1,5.4559]
[1746007344885,6.34969198,1806.4,1806.1,5.4559]
[1746007345057,0.6349692,1806.3,1806.1,5.4559]
[1746007346581,6.17123336,1806.3,1806.1,5.4559]
[1746007346981,6.17123336,1806.3,1806.1,4.633]
[1746007347374,0.6349692,1806.3,1806.1,4.633]
[1746007347858,0.6349692,1806.3,1806.1,10.16977038]
[1746007348061,6.34969198,1806.4,1806.1,10.16977038]
[1746007348255,6.34969198,1806.4,1806.1,4.633]
[1746007348461,11.8858319,1806.4,1806.1,4.633]
[1746007348786,11.88582812,1806.4,1806.1,4.633]
[1746007348973,11.88582819,1806.4,1806.1,4.633]
[1746007349156,1.18858282,1806.3,1806.1,4.633]
[1746007350058,7.34116747,1806.6,1806.1,11.00087626]
[1746007350262,5.53567497,1806.5,1806.1,11.00087626]
[1746007350586,5.5359614,1806.4,1806.1,5.4642]
[1746007350948,5.53573225,1806.5,1806.1,11.00094491]
[1746007351287,5.53573225,1806.5,1806.1,11.00079684]
[1746007351489,0.55357322,1806.4,1806.1,11.00079636]
[1746007351775,5.53573225,1806.5,1806.1,16.53738894]
[1746007351947,5.53573225,1806.5,1806.1,11.00079258]
[1746007352147,5.53594523,1806.4,1806.1,11.00079258]
[1746007352378,5.53573225,1806.5,1806.1,11.00079258]
[1746007353280,11.07156213,1806.5,1806.1,11.00079258]
[1746007353457,1.10715621,1806.4,1806.1,11.00079258]
[1746007353659,5.53573225,1806.5,1806.1,11.00079258]
[1746007353842,5.53573225,1806.5,1806.1,11.00077645]
[1746007354048,5.53590184,1806.4,1806.1,5.4642]
[1746007355361,5.53591488,1806.4,1806.1,11.00094578]
[1746007356688,5.53591488,1806.4,1806.1,5.4642]
[1746007356875,6.64307959,1806.4,1806.1,5.4642]
[1746007357793,5.53619015,1806.3,1806.1,5.4642]
[1746007357991,5.53619015,1806.3,1806.1,4.633]
[1746007358486,6.36289015,1806.3,1806.1,4.633]
[1746007358688,5.60569048,1806.2,1806.1,0.05]
[1746007358986,6.17277445,1806.2,1806.1,0.05]
[1746007362612,0.63628902,1806.2,1806.1,0.05]
[1746007362788,6.15,1806.3,1806.1,0.05]
[1746007363109,6.15,1806.3,1806.1,5.58664462]
[1746007363264,6.15,1806.4,1806.1,5.58664462]
[1746007363458,0.63628961,1806.8,1806.2,6.2805412]
[1746007363810,6.9196,1807.3,1807.0,5.53393071]
[1746007364013,17.21663867,1807.3,1807.0,5.3519]
[1746007364292,5.53360763,1807.2,1807.0,4.583]
[1746007364589,0.55336076,1807.1,1807.0,4.583]
[1746007365090,17.21663989,1807.3,1807.0,4.583]
[1746007365696,6.15,1807.3,1807.0,4.583]
[1746007365885,11.68328216,1807.3,1807.0,4.583]
[1746007366083,5.53342353,1807.2,1807.0,4.583]
[1746007367795,11.68330175,1807.3,1807.0,4.583]
[1746007368099,5.53342697,1807.2,1807.0,4.583]
[1746007368599,7.91238245,1807.3,1807.0,10.1169002]
[1746007368802,7.91238245,1807.3,1807.0,10.11682362]
[1746007368803,6.15,1807.3,1807.0,10.11682362]
[1746007369100,12.09059467,1807.4,1807.0,10.11682362]
[1746007369295,11.68301443,1807.4,1807.1,5.53369971]
[1746007369500,6.15,1807.4,1807.2,5.53337487]
[1746007369865,3.0,1807.5,1807.2,5.53325028]
[1746007369866,6.15,1807.5,1807.2,5.53325028]
[1746007370267,6.15,1807.5,1807.2,5.53324545]
[1746007371084,6.15,1807.5,1807.1,6.29714987]
[1746007371085,11.68262647,1807.5,1807.1,6.29714987]
[1746007371268,11.68262647,1807.5,1807.1,6.29713291]
[1746007371579,6.15,1807.5,1807.1,6.29713291]
[1746007371762,11.68269441,1807.5,1807.1,6.29713291]
[1746007371962,17.21543456,1807.5,1807.1,6.29713291]
[1746007372163,11.68269441,1807.5,1807.1,6.29713291]
[1746007372402,17.21546221,1807.5,1807.1,6.29713291]
[1746007372570,11.68269441,1807.5,1807.1,6.29713291]
[1746007373070,11.68269441,1807.5,1807.1,0.7636]
[1746007373270,11.68269441,1807.5,1807.1,6.29719765]
[1746007373482,17.21544626,1807.5,1807.1,6.29719765]
[1746007373722,17.21542716,1807.5,1807.1,6.29719765]
[1746007374263,17.21545418,1807.5,1807.1,6.29719765]
[1746007375226,11.68269441,1807.5,1807.1,6.29719765]
[1746007376722,17.21542895,1807.5,1807.1,6.29719765]
[1746007376897,11.68269441,1807.5,1807.1,6.29719765]
[1746007377096,17.21547352,1807.5,1807.1,6.29719765]
[1746007377496,5.53292662,1807.4,1807.1,0.7636]
[1746007379029,5.53314694,1807.3,1807.1,0.7636]
[1746007379200,5.53314694,1807.3,1807.0,4.583]
[1746007379718,5.5334551,1807.2,1807.1,4.607]
[1746007379910,5.53314694,1807.3,1807.1,4.607]
[1746007380522,5.53342186,1807.2,1807.1,4.607]
[1746007380689,5.53314694,1807.3,1807.1,4.607]
[1746007381611,11.06648702,1807.3,1807.1,4.607]
[1746007381786,11.06649991,1807.3,1807.1,4.607]
[1746007382001,5.53314694,1807.3,1807.1,4.607]
[1746007383054,5.53342186,1807.2,1807.1,4.607]
[1746007383537,6.64007874,1807.2,1807.1,4.607]
[1746007383940,13.62287874,1807.2,1807.1,4.607]
[1746007384529,16.62287874,1807.2,1806.7,19.0406]
[1746007384747,5.53439884,1806.9,1806.8,4.607]
[1746007386939,6.32039884,1806.9,1806.8,4.607]
[1746007388954,15.79015282,1807.2,1806.8,7.7042]
[1746007388955,14.68357596,1807.2,1806.8,7.7042]
[1746007389136,14.68357596,1807.2,1806.8,13.23875064]
[1746007389346,11.68357596,1807.2,1806.8,13.23875064]
[1746007390037,5.53382705,1807.1,1806.8,13.23875064]
[1746007391247,5.53382705,1807.1,1806.8,7.7042]
[1746007391446,11.68357596,1807.2,1806.8,13.23880238]
[1746007392158,11.68357596,1807.2,1806.8,18.77330477]
[1746007392361,11.68357596,1807.2,1806.8,13.23870239]
[1746007392729,17.21725998,1807.2,1806.8,13.23870239]
[1746007393075,6.15,1807.2,1806.8,13.23869325]
[1746007393230,6.15,1807.2,1806.9,6.85144254]
[1746007394125,6.15,1807.3,1806.9,1.3726319]
[1746007394427,6.15,1807.4,1807.1,5.53358678]
[1746007394639,8.53261765,1807.5,1807.3,0.8273]
[1746007394823,5.53280956,1807.4,1807.2,4.607]
[1746007396226,8.53261765,1807.5,1807.2,4.607]
[1746007396832,14.06538906,1807.5,1807.2,4.607]
[1746007397031,5.53288144,1807.4,1807.2,4.607]
[1746007398565,11.06593412,1807.4,1807.2,4.607]
[1746007398956,5.53288144,1807.4,1807.2,4.607]
[1746007399265,8.53269014,1807.5,1807.2,5.15043]
[1746007399266,11.06548577,1807.5,1807.2,5.15043]
[1746007399463,5.53269014,1807.5,1807.2,5.15043]
[1746007400259,5.53286354,1807.4,1807.2,5.15043]
[1746007401869,5.53269014,1807.5,1807.2,5.15043]
[1746007402071,11.06542673,1807.5,1807.2,5.15043]
[1746007402372,5.53282004,1807.4,1807.2,5.15043]
[1746007403839,5.53269014,1807.5,1807.2,5.15043]
[1746007404041,5.53269014,1807.5,1807.2,4.607]
[1746007404262,5.53286275,1807.4,1807.2,4.607]
[1746007405366,0.31143068,1807.3,1807.2,4.607]
[1746007405570,0.83048182,1807.3,1807.2,4.607]
[1746007409069,0.83048182,1807.3,1807.2,10.14042186]
[1746007409372,0.83048182,1807.3,1807.2,11.7905446]
[1746007409671,0.83048182,1807.3,1807.2,6.25712274]
[1746007412968,0.83048182,1807.3,1807.2,11.7905446]
[1746007413546,0.83048182,1807.3,1807.2,6.25712274]
[1746007414881,0.83048182,1807.3,1807.2,4.607]
[1746007415051,6.36359751,1807.3,1807.2,4.607]
[1746007415375,0.83048182,1807.3,1807.2,4.607]
[1746007417662,6.36359751,1807.3,1807.2,4.607]
[1746007421788,12.5128759,1807.3,1807.2,4.607]
[1746007421964,14.39976856,1807.3,1807.2,4.607]
[1746007427314,18.19056856,1807.3,1807.2,4.607]
[1746007427494,18.19056856,1807.3,1806.6,0.779]
[1746007427495,5.53446231,1806.9,1806.6,0.779]
[1746007427812,5.53464688,1806.8,1806.7,4.601]
[1746007428012,6.36440709,1806.8,1806.7,4.601]
[1746007428213,5.5352596,1806.6,1806.5,18.273]
[1746007428400,5.5352596,1806.6,1806.5,22.874]
[1746007428811,0.82976021,1806.6,1806.5,22.874]
[1746007431320,6.36501981,1806.6,1806.5,22.874]
[1746007432019,8.37181887,1806.6,1806.5,22.874]
[1746007432220,16.21936007,1806.6,1806.5,4.601]
[1746007432441,15.40256007,1806.6,1806.5,4.601]
[1746007432608,5.53648543,1806.2,1806.1,0.05]
[1746007432811,5.84791611,1806.2,1806.1,4.652]
[1746007433244,6.36624564,1806.2,1806.1,4.652]
[1746007437038,7.63817523,1806.2,1806.1,0.05]
[1746007437610,6.36624564,1806.2,1806.1,0.05]
[1746007438105,0.82976021,1806.2,1806.1,0.05]
[1746007439150,0.51832953,1806.2,1806.1,0.05]
[1746007439542,6.05481496,1806.2,1806.1,0.05]
[1746007440824,6.82501496,1806.2,1806.1,0.05]
[1746007441155,8.92403456,1806.2,1806.1,0.05]
[1746007442115,0.82759112,1806.2,1806.1,0.05]
[1746007442321,0.82759112,1806.2,1806.1,0.8107]
[1746007443217,6.05481496,1806.2,1806.1,0.8107]
[1746007443654,0.51832953,1806.2,1806.1,0.8107]
[1746007445442,0.51832953,1806.2,1806.1,6.34749198]
[1746007445635,0.51832953,1806.2,1806.1,7.99613923]
[1746007446043,0.51832953,1806.2,1806.1,8.05150007]
[1746007446249,6.15,1806.4,1806.2,5.53631581]
[1746007446557,6.15,1806.4,1806.3,0.783]
[1746007447746,6.66563957,1806.4,1806.3,0.783]
[1746007453562,6.97556249,1806.4,1806.3,0.783]
[1746007454061,6.97556249,1806.4,1806.3,5.384]
[1746007455453,6.97556249,1806.4,1806.3,6.47602639]
[1746007455781,6.97556249,1806.4,1806.3,12.01220531]
[1746007456081,6.97556249,1806.4,1806.3,6.47602639]
[1746007456782,6.97556249,1806.4,1806.3,5.384]
[1746007457206,0.82556249,1806.4,1806.3,5.384]
[1746007460289,0.82556249,1806.4,1806.3,4.601]
[1746007462601,6.36143494,1806.4,1806.3,4.601]
[1746007462807,0.82556249,1806.4,1806.3,4.601]
[1746007463709,0.82556249,1806.4,1806.1,6.41389576]
[1746007463910,0.82556249,1806.4,1806.3,4.601]
[1746007466412,0.82556249,1806.4,1806.3,11.94362524]
[1746007467601,0.82556249,1806.4,1806.3,5.3937]
[1746007469130,0.82556249,1806.4,1806.3,10.92987892]
[1746007470529,0.82556249,1806.4,1806.3,5.3937]
[1746007471626,0.82556249,1806.4,1806.3,10.92987892]
[1746007476145,0.82556249,1806.4,1806.3,4.601]
[1746007479881,0.82556249,1806.4,1806.3,10.13717892]
[1746007480180,0.82556249,1806.4,1806.3,4.601]
[1746007485150,0.82556249,1806.4,1806.3,10.13717892]
[1746007485355,0.82556249,1806.4,1806.3,11.78749379]
[1746007498611,6.36143494,1806.4,1806.3,4.601]
[1746007498911,0.82556249,1806.4,1806.3,4.601]
[1746007501092,0.82556249,1806.4,1806.3,10.13717892]
[1746007501510,17.97906019,1806.7,1806.3,10.13717892]
[1746007502105,5.53535217,1806.6,1806.3,10.13717892]
[1746007502303,5.53535217,1806.6,1806.3,4.601]
[1746007502711,0.83025505,1806.5,1806.3,4.601]
[1746007503010,0.83025505,1806.5,1806.3,10.13709584]
[1746007503208,0.51890941,1806.4,1806.3,10.13709584]
[1746007503413,0.83025505,1806.4,1806.3,10.13709584]
[1746007504107,0.83025505,1806.4,1806.3,11.39961683]
[1746007505007,1.63425505,1806.4,1806.3,4.601]
[1746007505178,0.83025505,1806.4,1806.3,4.601]
[1746007508979,1.59755505,1806.4,1806.3,4.601]
[1746007509178,7.1334275,1806.4,1806.3,4.601]
[1746007509413,1.59755505,1806.4,1806.3,4.601]